[Event "December 12 Early 2023"]
[Site "https://www.chess.com"]
[Date "2023.12.12"]
[Round "5"]
[White "Karas, Marek"]
[Black "yaguigor"]
[Result "0-1"]
[Board "114"]
[TimeControl "180+1"]
[WhiteFideId "14928558"]
[WhiteElo "2546"]
[BlackElo "2423"]
[WhiteTeam "CZE"]
[WhiteClock "0:00:03"]
[BlackClock "0:00:38"]

1. d4 {[%clk 0:03:00]}  d5 {[%clk 0:02:59]} 2. Nf3 {[%clk 0:02:57]}  Nf6 {[%clk 0:02:59]} 3. c4 {[%clk 0:02:51]}  c6 {[%clk 0:02:59]} 4. Nc3 {[%clk 0:02:49]}  e6 {[%clk 0:02:58]} 5. g3 {[%clk 0:02:49]}  dxc4 {[%clk 0:02:57]} 6. Bg2 {[%clk 0:02:48]}  Nbd7 {[%clk 0:02:55]} 7. O-O {[%clk 0:02:47]}  b5 {[%clk 0:02:52]} 8. e4 {[%clk 0:02:41]}  Bb7 {[%clk 0:02:42]} 9. e5 {[%clk 0:02:32]}  Nd5 {[%clk 0:02:41]} 10. Ng5 {[%clk 0:02:18]}  Be7 {[%clk 0:02:27]} 11. Qh5 {[%clk 0:02:08]}  g6 {[%clk 0:02:21]} 12. Qh6 {[%clk 0:02:07]}  Bf8 {[%clk 0:02:15]} 13. Qh3 {[%clk 0:02:06]}  Nxc3 {[%clk 0:02:08]} 14. bxc3 {[%clk 0:02:03]}  Be7 {[%clk 0:02:04]} 15. Ne4 {[%clk 0:01:57]}  O-O {[%clk 0:01:54]} 16. Bh6 {[%clk 0:01:49]}  Re8 {[%clk 0:01:52]} 17. Rad1 {[%clk 0:01:38]}  Qc7 {[%clk 0:01:37]} 18. f4 {[%clk 0:01:30]}  c5 {[%clk 0:01:35]} 19. Bg5 {[%clk 0:00:55]}  Bxe4 {[%clk 0:01:34]} 20. Bxe4 {[%clk 0:00:53]}  cxd4 {[%clk 0:01:26]} 21. Bxa8 {[%clk 0:00:48]}  Bxg5 {[%clk 0:01:22]} 22. Be4 {[%clk 0:00:46]}  Nc5 {[%clk 0:01:16]} 23. Bg2 {[%clk 0:00:37]}  Be7 {[%clk 0:01:14]} 24. cxd4 {[%clk 0:00:35]}  Nd3 {[%clk 0:01:14]} 25. Be4 {[%clk 0:00:22]}  Qb6 {[%clk 0:01:11]} 26. Bxd3 {[%clk 0:00:20]}  Qxd4+ {[%clk 0:01:11]} 27. Kh1 {[%clk 0:00:18]}  cxd3 {[%clk 0:01:11]} 28. g4 {[%clk 0:00:16]}  Rd8 {[%clk 0:01:08]} 29. Qf3 {[%clk 0:00:15]}  Qd5 {[%clk 0:00:59]} 30. Qxd5 {[%clk 0:00:14]}  Rxd5 {[%clk 0:00:59]} 31. Rf3 {[%clk 0:00:12]}  d2 {[%clk 0:00:58]} 32. Kg2 {[%clk 0:00:12]}  Bb4 {[%clk 0:00:56]} 33. Kf1 {[%clk 0:00:12]}  g5 {[%clk 0:00:52]} 34. fxg5 {[%clk 0:00:09]}  Rxe5 {[%clk 0:00:52]} 35. Kg2 {[%clk 0:00:07]}  Re2+ {[%clk 0:00:50]} 36. Rf2 {[%clk 0:00:07]}  Re1 {[%clk 0:00:51]} 37. Rdxd2 {[%clk 0:00:06]}  Bxd2 {[%clk 0:00:50]} 38. Rxd2 {[%clk 0:00:07]}  Kg7 {[%clk 0:00:47]} 39. h4 {[%clk 0:00:07]}  h6 {[%clk 0:00:43]} 40. gxh6+ {[%clk 0:00:06]}  Kxh6 {[%clk 0:00:43]} 41. Kg3 {[%clk 0:00:07]}  Kg6 {[%clk 0:00:43]} 42. Rd7 {[%clk 0:00:05]}  Re3+ {[%clk 0:00:42]} 43. Kf4 {[%clk 0:00:05]}  Ra3 {[%clk 0:00:42]} 44. h5+ {[%clk 0:00:05]}  Kg7 {[%clk 0:00:42]} 45. Rd2 {[%clk 0:00:04]}  Ra4+ {[%clk 0:00:41]} 46. Kg5 {[%clk 0:00:04]}  f6+ {[%clk 0:00:40]} 47. Kh4 {[%clk 0:00:04]}  f5 {[%clk 0:00:41]} 48. Rd7+ {[%clk 0:00:04]}  Kf6 {[%clk 0:00:40]} 49. h6 {[%clk 0:00:03]}  Rxg4+ {[%clk 0:00:40]} 50. Kh5 {[%clk 0:00:04]}  Rg5+ {[%clk 0:00:38]} 51. Kh4 {[%clk 0:00:03]}  Rg1 {[%clk 0:00:39]} 52. Kh5 {[%clk 0:00:03]}  Rh1# {[%clk 0:00:38]} 0-1

[Event "December 12 Early 2023"]
[Site "https://www.chess.com"]
[Date "2023.12.12"]
[Round "5"]
[White "Jimenez Almeida, Luis David"]
[Black "Xie, Bryan"]
[Result "0-1"]
[Board "115"]
[TimeControl "180+1"]
[WhiteFideId "22242244"]
[BlackFideId "30941296"]
[WhiteElo "2535"]
[BlackElo "2420"]
[WhiteTeam "ESP"]
[BlackTeam "USA"]
[WhiteClock "0:00:03"]
[BlackClock "0:00:13"]

1. e4 {[%clk 0:02:56]}  c5 {[%clk 0:02:58]} 2. Nc3 {[%clk 0:02:56]}  Nc6 {[%clk 0:02:57]} 3. g3 {[%clk 0:02:56]}  e6 {[%clk 0:02:54]} 4. Bg2 {[%clk 0:02:53]}  Nf6 {[%clk 0:02:54]} 5. Nge2 {[%clk 0:02:53]}  Be7 {[%clk 0:02:53]} 6. O-O {[%clk 0:02:52]}  O-O {[%clk 0:02:52]} 7. d4 {[%clk 0:02:52]}  cxd4 {[%clk 0:02:51]} 8. Nxd4 {[%clk 0:02:53]}  Qc7 {[%clk 0:02:49]} 9. Be3 {[%clk 0:02:50]}  a6 {[%clk 0:02:47]} 10. Qe2 {[%clk 0:02:46]}  b5 {[%clk 0:02:45]} 11. a3 {[%clk 0:02:34]}  Bb7 {[%clk 0:02:45]} 12. h3 {[%clk 0:02:31]}  d6 {[%clk 0:02:42]} 13. Rae1 {[%clk 0:02:25]}  Rac8 {[%clk 0:02:41]} 14. f4 {[%clk 0:02:22]}  Nxd4 {[%clk 0:02:32]} 15. Bxd4 {[%clk 0:02:23]}  Nd7 {[%clk 0:02:31]} 16. f5 {[%clk 0:01:54]}  e5 {[%clk 0:02:19]} 17. Be3 {[%clk 0:01:50]}  d5 {[%clk 0:02:10]} 18. exd5 {[%clk 0:01:33]}  Bxa3 {[%clk 0:02:06]} 19. d6 {[%clk 0:01:21]}  Bxd6 {[%clk 0:02:04]} 20. Bxb7 {[%clk 0:01:19]}  Qxb7 {[%clk 0:02:05]} 21. f6 {[%clk 0:01:13]}  Nxf6 {[%clk 0:02:01]} 22. Rxf6 {[%clk 0:01:00]}  gxf6 {[%clk 0:02:02]} 23. Bh6 {[%clk 0:00:58]}  f5 {[%clk 0:01:32]} 24. Qh5 {[%clk 0:00:54]}  Qb6+ {[%clk 0:01:23]} 25. Be3 {[%clk 0:00:48]}  Bc5 {[%clk 0:01:17]} 26. Nd5 {[%clk 0:00:42]}  Bxe3+ {[%clk 0:01:14]} 27. Rxe3 {[%clk 0:00:42]}  Qd6 {[%clk 0:01:02]} 28. Qxf5 {[%clk 0:00:29]}  f6 {[%clk 0:00:46]} 29. Rd3 {[%clk 0:00:23]}  Rxc2 {[%clk 0:00:38]} 30. h4 {[%clk 0:00:18]}  Qc5+ {[%clk 0:00:34]} 31. Kh1 {[%clk 0:00:17]}  Rc1+ {[%clk 0:00:32]} 32. Kg2 {[%clk 0:00:17]}  Qc2+ {[%clk 0:00:32]} 33. Kh3 {[%clk 0:00:17]}  Rh1+ {[%clk 0:00:32]} 34. Kg4 {[%clk 0:00:17]}  Qe2+ {[%clk 0:00:32]} 35. Rf3 {[%clk 0:00:17]}  Qc4+ {[%clk 0:00:32]} 36. Rf4 {[%clk 0:00:08]}  exf4 {[%clk 0:00:16]} 37. Nxf4 {[%clk 0:00:07]}  Qf7 {[%clk 0:00:15]} 38. h5 {[%clk 0:00:05]}  Qg7+ {[%clk 0:00:15]} 39. Kf3 {[%clk 0:00:05]}  Qb7+ {[%clk 0:00:15]} 40. Kg4 {[%clk 0:00:05]}  Qg7+ {[%clk 0:00:14]} 41. Kf3 {[%clk 0:00:05]}  Re8 {[%clk 0:00:15]} 42. Nd5 {[%clk 0:00:05]}  Rf1+ {[%clk 0:00:12]} 43. Kg2 {[%clk 0:00:03]}  Rxf5 {[%clk 0:00:13]} 0-1

[Event "December 12 Early 2023"]
[Site "https://www.chess.com"]
[Date "2023.12.12"]
[Round "5"]
[White "Hirneise, Jens"]
[Black "Parra Gomez, Adrian"]
[Result "0-1"]
[Board "116"]
[TimeControl "180+1"]
[WhiteFideId "24614734"]
[BlackFideId "3513106"]
[WhiteElo "2534"]
[BlackElo "2419"]
[WhiteTeam "GER"]
[BlackTeam "CUB"]
[WhiteClock "0:00:21"]
[BlackClock "0:00:36"]

1. d4 {[%clk 0:03:00]}  d5 {[%clk 0:03:00]} 2. c4 {[%clk 0:03:00]}  e6 {[%clk 0:03:00]} 3. Nf3 {[%clk 0:02:59]}  Nf6 {[%clk 0:03:00]} 4. g3 {[%clk 0:02:58]}  dxc4 {[%clk 0:03:00]} 5. Bg2 {[%clk 0:02:57]}  c5 {[%clk 0:03:00]} 6. O-O {[%clk 0:02:51]}  Nc6 {[%clk 0:03:00]} 7. dxc5 {[%clk 0:02:47]}  Qxd1 {[%clk 0:03:01]} 8. Rxd1 {[%clk 0:02:47]}  Bxc5 {[%clk 0:03:02]} 9. Nbd2 {[%clk 0:02:45]}  Ng4 {[%clk 0:03:01]} 10. e3 {[%clk 0:02:41]}  Bxe3 {[%clk 0:03:00]} 11. fxe3 {[%clk 0:02:36]}  Nxe3 {[%clk 0:03:00]} 12. Re1 {[%clk 0:02:15]}  Nc2 {[%clk 0:02:59]} 13. Rb1 {[%clk 0:02:11]}  Nxe1 {[%clk 0:02:57]} 14. Nxe1 {[%clk 0:02:12]}  Na5 {[%clk 0:02:47]} 15. b4 {[%clk 0:02:05]}  cxb3 {[%clk 0:02:46]} 16. axb3 {[%clk 0:02:05]}  Bd7 {[%clk 0:02:42]} 17. b4 {[%clk 0:02:05]}  Nc6 {[%clk 0:02:42]} 18. Nc4 {[%clk 0:02:04]}  O-O {[%clk 0:02:38]} 19. b5 {[%clk 0:02:03]}  Nd8 {[%clk 0:02:34]} 20. Ba3 {[%clk 0:02:02]}  Rc8 {[%clk 0:02:02]} 21. Ne5 {[%clk 0:01:48]}  Be8 {[%clk 0:01:55]} 22. Bxf8 {[%clk 0:01:42]}  Kxf8 {[%clk 0:01:56]} 23. N1d3 {[%clk 0:01:30]}  f6 {[%clk 0:01:54]} 24. Ng4 {[%clk 0:01:28]}  Bg6 {[%clk 0:01:47]} 25. Rb3 {[%clk 0:01:26]}  Ke7 {[%clk 0:01:43]} 26. Ne3 {[%clk 0:01:19]}  b6 {[%clk 0:01:30]} 27. Nb4 {[%clk 0:01:15]}  Rc1+ {[%clk 0:01:26]} 28. Kf2 {[%clk 0:01:15]}  Nf7 {[%clk 0:01:19]} 29. Ra3 {[%clk 0:01:12]}  f5 {[%clk 0:01:14]} 30. Rxa7+ {[%clk 0:01:08]}  Kf6 {[%clk 0:01:14]} 31. Nc6 {[%clk 0:00:55]}  Rb1 {[%clk 0:01:06]} 32. Bf1 {[%clk 0:00:46]}  Rb2+ {[%clk 0:01:01]} 33. Kg1 {[%clk 0:00:45]}  Ng5 {[%clk 0:01:01]} 34. Bg2 {[%clk 0:00:40]}  Rxb5 {[%clk 0:00:57]} 35. Ra2 {[%clk 0:00:37]}  Rb1+ {[%clk 0:00:53]} 36. Kf2 {[%clk 0:00:36]}  Be8 {[%clk 0:00:52]} 37. h4 {[%clk 0:00:35]}  Nf7 {[%clk 0:00:48]} 38. Nd4 {[%clk 0:00:30]}  Ne5 {[%clk 0:00:47]} 39. Bf1 {[%clk 0:00:26]}  h6 {[%clk 0:00:41]} 40. Be2 {[%clk 0:00:26]}  g5 {[%clk 0:00:40]} 41. hxg5+ {[%clk 0:00:27]}  hxg5 {[%clk 0:00:40]} 42. Nc4 {[%clk 0:00:27]}  Nxc4 {[%clk 0:00:38]} 43. Bxc4 {[%clk 0:00:28]}  Rb4 {[%clk 0:00:37]} 44. Rc2 {[%clk 0:00:24]}  b5 {[%clk 0:00:37]} 45. Nxb5 {[%clk 0:00:24]}  Bxb5 {[%clk 0:00:36]} 46. Bxb5 {[%clk 0:00:24]}  Rxb5 {[%clk 0:00:37]} 47. Ra2 {[%clk 0:00:25]}  Rb3 {[%clk 0:00:36]} 48. Rc2 {[%clk 0:00:25]}  f4 {[%clk 0:00:36]} 49. gxf4 {[%clk 0:00:25]}  gxf4 {[%clk 0:00:36]} 50. Ra2 {[%clk 0:00:21]}  e5 {[%clk 0:00:36]} 0-1

[Event "December 12 Early 2023"]
[Site "https://www.chess.com"]
[Date "2023.12.12"]
[Round "5"]
[White "Zaksaite, Salomeja"]
[Black "Goltseva, Ekaterina"]
[Result "0-1"]
[Board "119"]
[TimeControl "180+1"]
[WhiteFideId "12801496"]
[BlackFideId "24173770"]
[WhiteElo "2378"]
[BlackElo "2530"]
[WhiteTeam "LTU"]
[BlackTeam "RUS"]
[WhiteClock "0:01:35"]
[BlackClock "0:01:49"]

1. e4 {[%clk 0:03:00]}  c5 {[%clk 0:02:44]} 2. Nf3 {[%clk 0:02:59]}  Nf6 {[%clk 0:02:44]} 3. Nc3 {[%clk 0:02:57]}  d5 {[%clk 0:02:44]} 4. exd5 {[%clk 0:02:54]}  Nxd5 {[%clk 0:02:41]} 5. Bb5+ {[%clk 0:02:54]}  Bd7 {[%clk 0:02:38]} 6. Qe2 {[%clk 0:02:53]}  Nb4 {[%clk 0:02:31]} 7. d4 {[%clk 0:02:47]}  cxd4 {[%clk 0:02:24]} 8. Nxd4 {[%clk 0:02:46]}  N8c6 {[%clk 0:02:21]} 9. Be3 {[%clk 0:02:41]}  e5 {[%clk 0:02:10]} 10. Nxc6 {[%clk 0:02:08]}  Bxc6 {[%clk 0:01:58]} 11. Rd1 {[%clk 0:02:05]}  Qa5 {[%clk 0:01:53]} 12. Rd5 {[%clk 0:01:35]}  Nxd5 {[%clk 0:01:49]} 0-1

[Event "December 12 Early 2023"]
[Site "https://www.chess.com"]
[Date "2023.12.12"]
[Round "5"]
[White "Rogov, Matfey"]
[Black "Munoz Sanchez, Miguel"]
[Result "1-0"]
[Board "122"]
[TimeControl "180+1"]
[WhiteFideId "44191308"]
[BlackFideId "3600734"]
[WhiteElo "2522"]
[BlackElo "2338"]
[WhiteTeam "RUS"]
[BlackTeam "ECU"]
[WhiteClock "0:00:25"]
[BlackClock "0:00:00"]

1. e4 {[%clk 0:03:00]}  c5 {[%clk 0:02:58]} 2. Nc3 {[%clk 0:03:00]}  Nc6 {[%clk 0:02:57]} 3. Bb5 {[%clk 0:02:59]}  e6 {[%clk 0:02:54]} 4. Bxc6 {[%clk 0:02:59]}  bxc6 {[%clk 0:02:53]} 5. d3 {[%clk 0:02:58]}  d5 {[%clk 0:02:53]} 6. f4 {[%clk 0:02:58]}  Nf6 {[%clk 0:02:46]} 7. Nf3 {[%clk 0:02:55]}  Be7 {[%clk 0:02:44]} 8. O-O {[%clk 0:02:52]}  c4 {[%clk 0:02:35]} 9. e5 {[%clk 0:02:42]}  Ng4 {[%clk 0:02:23]} 10. d4 {[%clk 0:02:13]}  h5 {[%clk 0:02:19]} 11. b3 {[%clk 0:02:07]}  Ba6 {[%clk 0:02:08]} 12. Re1 {[%clk 0:02:01]}  g6 {[%clk 0:02:01]} 13. a3 {[%clk 0:01:55]}  cxb3 {[%clk 0:01:57]} 14. cxb3 {[%clk 0:01:56]}  Rb8 {[%clk 0:01:53]} 15. b4 {[%clk 0:01:55]}  O-O {[%clk 0:01:48]} 16. Ng5 {[%clk 0:01:50]}  Bc4 {[%clk 0:01:43]} 17. h3 {[%clk 0:01:40]}  Nh6 {[%clk 0:01:41]} 18. g4 {[%clk 0:01:40]}  hxg4 {[%clk 0:01:37]} 19. hxg4 {[%clk 0:01:41]}  Kg7 {[%clk 0:01:33]} 20. Kg2 {[%clk 0:01:30]}  a5 {[%clk 0:01:30]} 21. Rh1 {[%clk 0:01:24]}  Rh8 {[%clk 0:01:28]} 22. bxa5 {[%clk 0:01:08]}  Qxa5 {[%clk 0:01:26]} 23. Bd2 {[%clk 0:01:08]}  Rb2 {[%clk 0:01:24]} 24. Kg3 {[%clk 0:00:59]}  Rb3 {[%clk 0:01:12]} 25. Qf3 {[%clk 0:00:53]}  Qb6 {[%clk 0:01:04]} 26. Qe3 {[%clk 0:00:34]}  c5 {[%clk 0:00:42]} 27. f5 {[%clk 0:00:34]}  exf5 {[%clk 0:00:37]} 28. Rxh6 {[%clk 0:00:33]}  Rxh6 {[%clk 0:00:32]} 29. Ne6+ {[%clk 0:00:33]}  fxe6 {[%clk 0:00:21]} 30. Qxh6+ {[%clk 0:00:34]}  Kf7 {[%clk 0:00:21]} 31. Rh1 {[%clk 0:00:28]}  cxd4 {[%clk 0:00:20]} 32. Qh8 {[%clk 0:00:27]}  Rxc3+ {[%clk 0:00:09]} 33. Bxc3 {[%clk 0:00:27]}  Bh4+ {[%clk 0:00:00]} 34. Rxh4 {[%clk 0:00:25]} 1-0

[Event "December 12 Early 2023"]
[Site "https://www.chess.com"]
[Date "2023.12.12"]
[Round "5"]
[White "Storn, Justin"]
[Black "Tay, Junior"]
[Result "1-0"]
[Board "123"]
[TimeControl "180+1"]
[WhiteFideId "30922720"]
[BlackFideId "5800439"]
[WhiteElo "2337"]
[BlackElo "2522"]
[WhiteTeam "USA"]
[BlackTeam "SGP"]
[WhiteClock "0:00:07"]
[BlackClock "0:00:02"]

1. Nf3 {[%clk 0:02:55]}  d5 {[%clk 0:02:59]} 2. g3 {[%clk 0:02:53]}  c5 {[%clk 0:02:59]} 3. c4 {[%clk 0:02:52]}  e6 {[%clk 0:02:58]} 4. Bg2 {[%clk 0:02:50]}  Nc6 {[%clk 0:02:58]} 5. cxd5 {[%clk 0:02:49]}  exd5 {[%clk 0:02:58]} 6. O-O {[%clk 0:02:48]}  Nf6 {[%clk 0:02:58]} 7. d4 {[%clk 0:02:47]}  cxd4 {[%clk 0:02:59]} 8. Nxd4 {[%clk 0:02:48]}  Bc5 {[%clk 0:02:59]} 9. Nxc6 {[%clk 0:02:48]}  bxc6 {[%clk 0:02:59]} 10. Qc2 {[%clk 0:02:46]}  Qb6 {[%clk 0:02:59]} 11. Nc3 {[%clk 0:02:46]}  Be7 {[%clk 0:02:59]} 12. Na4 {[%clk 0:02:45]}  Qa6 {[%clk 0:02:57]} 13. b3 {[%clk 0:02:44]}  O-O {[%clk 0:02:57]} 14. Be3 {[%clk 0:02:39]}  Re8 {[%clk 0:02:55]} 15. Rac1 {[%clk 0:02:37]}  Bd7 {[%clk 0:02:54]} 16. Qb2 {[%clk 0:02:09]}  Bd6 {[%clk 0:02:42]} 17. Bf3 {[%clk 0:01:52]}  Rxe3 {[%clk 0:02:35]} 18. fxe3 {[%clk 0:01:51]}  Re8 {[%clk 0:02:35]} 19. Qd4 {[%clk 0:01:41]}  Be5 {[%clk 0:01:58]} 20. Qd2 {[%clk 0:01:36]}  h5 {[%clk 0:01:53]} 21. Rc5 {[%clk 0:01:31]}  h4 {[%clk 0:01:50]} 22. Kg2 {[%clk 0:01:30]}  Qb7 {[%clk 0:01:47]} 23. Ra5 {[%clk 0:01:10]}  Qb8 {[%clk 0:01:40]} 24. e4 {[%clk 0:00:55]}  hxg3 {[%clk 0:01:32]} 25. exd5 {[%clk 0:00:52]}  Bf4 {[%clk 0:01:22]} 26. Qd3 {[%clk 0:00:39]}  Qe5 {[%clk 0:01:03]} 27. dxc6 {[%clk 0:00:30]}  Qxa5 {[%clk 0:01:01]} 28. cxd7 {[%clk 0:00:31]}  Rd8 {[%clk 0:01:01]} 29. hxg3 {[%clk 0:00:31]}  Bc7 {[%clk 0:00:55]} 30. Bc6 {[%clk 0:00:19]}  Qe5 {[%clk 0:00:44]} 31. Rc1 {[%clk 0:00:19]}  Ng4 {[%clk 0:00:41]} 32. Qf3 {[%clk 0:00:17]}  Ne3+ {[%clk 0:00:36]} 33. Kf2 {[%clk 0:00:17]}  Nf5 {[%clk 0:00:31]} 34. Rc4 {[%clk 0:00:14]}  Qf6 {[%clk 0:00:18]} 35. Re4 {[%clk 0:00:10]}  Bxg3+ {[%clk 0:00:17]} 36. Kg1 {[%clk 0:00:10]}  Qxc6 {[%clk 0:00:16]} 37. Re8+ {[%clk 0:00:09]}  Rxe8 {[%clk 0:00:16]} 38. Qxc6 {[%clk 0:00:07]}  Rd8 {[%clk 0:00:15]} 39. Qc8 {[%clk 0:00:07]}  Bh4 {[%clk 0:00:10]} 40. Nc5 {[%clk 0:00:08]}  Ne7 {[%clk 0:00:08]} 41. Qxd8+ {[%clk 0:00:07]}  Kh7 {[%clk 0:00:08]} 42. Qe8 {[%clk 0:00:07]}  Nc6 {[%clk 0:00:06]} 43. Nb7 {[%clk 0:00:07]}  Kg6 {[%clk 0:00:02]} 44. Qe4+ {[%clk 0:00:07]} 1-0

[Event "December 12 Early 2023"]
[Site "https://www.chess.com"]
[Date "2023.12.12"]
[Round "5"]
[White "Yeritsyaan"]
[Black "Fernandez Siles, Luis"]
[Result "1-0"]
[Board "128"]
[TimeControl "180+1"]
[BlackFideId "2209420"]
[WhiteElo "2520"]
[BlackElo "2315"]
[BlackTeam "ESP"]
[WhiteClock "0:00:17"]
[BlackClock "0:00:10"]

1. c4 {[%clk 0:02:53]}  Nf6 {[%clk 0:02:58]} 2. Nc3 {[%clk 0:02:53]}  g6 {[%clk 0:02:56]} 3. e4 {[%clk 0:02:52]}  d6 {[%clk 0:02:56]} 4. d3 {[%clk 0:02:53]}  Bg7 {[%clk 0:02:55]} 5. g3 {[%clk 0:02:44]}  O-O {[%clk 0:02:54]} 6. Bg2 {[%clk 0:02:45]}  c5 {[%clk 0:02:50]} 7. Nge2 {[%clk 0:02:45]}  Nc6 {[%clk 0:02:50]} 8. O-O {[%clk 0:02:45]}  Bg4 {[%clk 0:02:49]} 9. h3 {[%clk 0:02:44]}  Bxe2 {[%clk 0:02:49]} 10. Nxe2 {[%clk 0:02:42]}  Ne8 {[%clk 0:02:46]} 11. Rb1 {[%clk 0:02:40]}  Nc7 {[%clk 0:02:45]} 12. Be3 {[%clk 0:02:35]}  Ne6 {[%clk 0:02:44]} 13. Qd2 {[%clk 0:02:34]}  Ned4 {[%clk 0:02:39]} 14. f4 {[%clk 0:02:33]}  Nxe2+ {[%clk 0:02:38]} 15. Qxe2 {[%clk 0:02:34]}  Bd4 {[%clk 0:02:38]} 16. Kh2 {[%clk 0:02:29]}  Bxe3 {[%clk 0:02:36]} 17. Qxe3 {[%clk 0:02:30]}  Nd4 {[%clk 0:02:36]} 18. e5 {[%clk 0:02:25]}  Rb8 {[%clk 0:02:31]} 19. Rf2 {[%clk 0:02:13]}  a5 {[%clk 0:02:15]} 20. h4 {[%clk 0:02:12]}  h5 {[%clk 0:01:51]} 21. f5 {[%clk 0:02:02]}  dxe5 {[%clk 0:01:41]} 22. Qxe5 {[%clk 0:01:41]}  Qd6 {[%clk 0:01:35]} 23. Qxd6 {[%clk 0:01:28]}  exd6 {[%clk 0:01:36]} 24. fxg6 {[%clk 0:01:28]}  fxg6 {[%clk 0:01:35]} 25. Rbf1 {[%clk 0:01:23]}  Rxf2 {[%clk 0:01:25]} 26. Rxf2 {[%clk 0:01:24]}  Kg7 {[%clk 0:01:17]} 27. Bd5 {[%clk 0:01:13]}  Nf5 {[%clk 0:01:16]} 28. Re2 {[%clk 0:01:03]}  b5 {[%clk 0:01:11]} 29. b3 {[%clk 0:00:59]}  bxc4 {[%clk 0:01:06]} 30. dxc4 {[%clk 0:01:00]}  a4 {[%clk 0:01:04]} 31. bxa4 {[%clk 0:00:59]}  Rb4 {[%clk 0:01:05]} 32. Re8 {[%clk 0:00:30]}  Rxa4 {[%clk 0:01:02]} 33. Ra8 {[%clk 0:00:30]}  Rb4 {[%clk 0:00:53]} 34. a4 {[%clk 0:00:27]}  Rb2+ {[%clk 0:00:53]} 35. Kh3 {[%clk 0:00:26]}  Rb3 {[%clk 0:00:53]} 36. a5 {[%clk 0:00:26]}  Nxg3 {[%clk 0:00:45]} 37. a6 {[%clk 0:00:26]}  Nf5+ {[%clk 0:00:42]} 38. Kh2 {[%clk 0:00:25]}  Rb2+ {[%clk 0:00:27]} 39. Kg1 {[%clk 0:00:25]}  Ne3 {[%clk 0:00:25]} 40. a7 {[%clk 0:00:23]}  Nxd5 {[%clk 0:00:24]} 41. Rg8+ {[%clk 0:00:22]}  Kxg8 {[%clk 0:00:24]} 42. a8=Q+ {[%clk 0:00:22]}  Kg7 {[%clk 0:00:10]} 43. Qa1 {[%clk 0:00:17]} 1-0

[Event "December 12 Early 2023"]
[Site "https://www.chess.com"]
[Date "2023.12.12"]
[Round "5"]
[White "Skibbe, Willi"]
[Black "Dubnevych, Maksym"]
[Result "0-1"]
[Board "129"]
[TimeControl "180+1"]
[WhiteFideId "4682190"]
[BlackFideId "14184001"]
[WhiteElo "2298"]
[BlackElo "2519"]
[WhiteTeam "GER"]
[BlackTeam "UKR"]
[WhiteClock "0:00:00"]
[BlackClock "0:00:25"]

1. e4 {[%clk 0:03:00]}  c5 {[%clk 0:02:55]} 2. c3 {[%clk 0:03:00]}  Nf6 {[%clk 0:02:52]} 3. e5 {[%clk 0:02:59]}  Nd5 {[%clk 0:02:46]} 4. Nf3 {[%clk 0:02:58]}  Nc6 {[%clk 0:02:46]} 5. Bc4 {[%clk 0:02:58]}  Nb6 {[%clk 0:02:44]} 6. Bb3 {[%clk 0:02:48]}  c4 {[%clk 0:02:43]} 7. Bc2 {[%clk 0:02:46]}  d5 {[%clk 0:02:42]} 8. exd6 {[%clk 0:02:44]}  Qxd6 {[%clk 0:02:41]} 9. O-O {[%clk 0:02:45]}  Bg4 {[%clk 0:02:39]} 10. Re1 {[%clk 0:02:27]}  e6 {[%clk 0:02:33]} 11. b3 {[%clk 0:02:23]}  cxb3 {[%clk 0:02:31]} 12. axb3 {[%clk 0:02:23]}  Be7 {[%clk 0:02:27]} 13. d4 {[%clk 0:02:13]}  O-O {[%clk 0:02:25]} 14. Nbd2 {[%clk 0:02:13]}  Qc7 {[%clk 0:02:23]} 15. Nc4 {[%clk 0:01:45]}  Nxc4 {[%clk 0:02:17]} 16. bxc4 {[%clk 0:01:46]}  e5 {[%clk 0:02:13]} 17. d5 {[%clk 0:01:07]}  Na5 {[%clk 0:02:06]} 18. Qd3 {[%clk 0:01:00]}  g6 {[%clk 0:01:58]} 19. Nxe5 {[%clk 0:00:32]}  Bf5 {[%clk 0:01:49]} 20. Qe2 {[%clk 0:00:32]}  Bxc2 {[%clk 0:01:48]} 21. Qxc2 {[%clk 0:00:33]}  Bd6 {[%clk 0:01:48]} 22. Nd7 {[%clk 0:00:14]}  Qxd7 {[%clk 0:01:35]} 23. Rxa5 {[%clk 0:00:13]}  Bxh2+ {[%clk 0:01:36]} 24. Kxh2 {[%clk 0:00:11]}  Qc7+ {[%clk 0:01:36]} 25. Bf4 {[%clk 0:00:09]}  Qxa5 {[%clk 0:01:37]} 26. Qd3 {[%clk 0:00:07]}  Qd8 {[%clk 0:01:31]} 27. Qd4 {[%clk 0:00:06]}  Qh4+ {[%clk 0:01:30]} 28. Kg1 {[%clk 0:00:06]}  Rfe8 {[%clk 0:01:30]} 29. Rb1 {[%clk 0:00:06]}  b6 {[%clk 0:01:26]} 30. g3 {[%clk 0:00:07]}  Qg4 {[%clk 0:01:26]} 31. d6 {[%clk 0:00:07]}  Rad8 {[%clk 0:01:25]} 32. c5 {[%clk 0:00:07]}  bxc5 {[%clk 0:01:23]} 33. Qxc5 {[%clk 0:00:07]}  Rd7 {[%clk 0:01:21]} 34. Qc6 {[%clk 0:00:06]}  Qf5 {[%clk 0:01:20]} 35. Rd1 {[%clk 0:00:05]}  g5 {[%clk 0:01:20]} 36. Be3 {[%clk 0:00:05]}  Rxe3 {[%clk 0:01:18]} 37. fxe3 {[%clk 0:00:04]}  Qg4 {[%clk 0:01:19]} 38. Kg2 {[%clk 0:00:04]}  h5 {[%clk 0:01:15]} 39. Rd4 {[%clk 0:00:05]}  Qe2+ {[%clk 0:01:15]} 40. Kg1 {[%clk 0:00:05]}  Qxe3+ {[%clk 0:01:14]} 41. Kg2 {[%clk 0:00:04]}  Qe6 {[%clk 0:01:08]} 42. Qc8+ {[%clk 0:00:04]}  Kg7 {[%clk 0:01:07]} 43. Qc5 {[%clk 0:00:05]}  Kg6 {[%clk 0:00:57]} 44. Rd5 {[%clk 0:00:04]}  f6 {[%clk 0:00:53]} 45. Qd4 {[%clk 0:00:04]}  Qe2+ {[%clk 0:00:49]} 46. Kg1 {[%clk 0:00:05]}  Rb7 {[%clk 0:00:48]} 47. Qd3+ {[%clk 0:00:04]}  Qxd3 {[%clk 0:00:49]} 48. Rxd3 {[%clk 0:00:04]}  Rd7 {[%clk 0:00:49]} 49. c4 {[%clk 0:00:05]}  Kf7 {[%clk 0:00:40]} 50. c5 {[%clk 0:00:05]}  Ke6 {[%clk 0:00:32]} 51. Re3+ {[%clk 0:00:06]}  Kd5 {[%clk 0:00:32]} 52. Re7 {[%clk 0:00:07]}  Kc6 {[%clk 0:00:31]} 53. Kf1 {[%clk 0:00:04]}  a5 {[%clk 0:00:30]} 54. Re8 {[%clk 0:00:02]}  Kxc5 {[%clk 0:00:29]} 55. Ra8 {[%clk 0:00:03]}  Kxd6 {[%clk 0:00:25]} 56. Rxa5 {[%clk 0:00:03]}  Ke6 {[%clk 0:00:26]} 57. Kf2 {[%clk 0:00:03]}  Rd2+ {[%clk 0:00:26]} 58. Kf3 {[%clk 0:00:04]}  Rd3+ {[%clk 0:00:26]} 59. Kf2 {[%clk 0:00:04]}  Kf7 {[%clk 0:00:25]} 60. Ra6 {[%clk 0:00:05]}  Kg6 {[%clk 0:00:25]} 61. Kg2 {[%clk 0:00:05]}  Kf5 {[%clk 0:00:25]} 62. Rb6 {[%clk 0:00:06]}  Rd2+ {[%clk 0:00:24]} 63. Kf3 {[%clk 0:00:06]}  g4+ {[%clk 0:00:24]} 64. Ke3 {[%clk 0:00:06]}  Rg2 {[%clk 0:00:25]} 65. Rb5+ {[%clk 0:00:06]}  Kg6 {[%clk 0:00:25]} 66. Kf4 {[%clk 0:00:06]}  Rf2+ {[%clk 0:00:26]} 67. Ke3 {[%clk 0:00:07]}  Rf3+ {[%clk 0:00:26]} 68. Ke4 {[%clk 0:00:08]}  Rxg3 {[%clk 0:00:27]} 69. Rb6 {[%clk 0:00:09]}  Rf3 {[%clk 0:00:27]} 70. Rb5 {[%clk 0:00:08]}  h4 {[%clk 0:00:26]} 71. Rb2 {[%clk 0:00:04]}  h3 {[%clk 0:00:26]} 72. Rh2 {[%clk 0:00:05]}  f5+ {[%clk 0:00:25]} 73. Ke5 {[%clk 0:00:04]}  Rg3 {[%clk 0:00:25]} 74. Kf4 {[%clk 0:00:04]}  Rg2 {[%clk 0:00:25]} 75. Rh1 {[%clk 0:00:03]}  h2 {[%clk 0:00:25]} 76. Ke3 {[%clk 0:00:03]}  g3 {[%clk 0:00:24]} 77. Kf3 {[%clk 0:00:00]}  Rg1 {[%clk 0:00:25]} 0-1